Workbook

Sheet Environment (hidden)
B1: Yes | C1: Regularly but not specified timeframe | D1: KWh | E1: day | G1: Previous year | I1: day
A2: Automotive and Auto Ancillary | B2: No | C2: Times per year | D2: MJ | E2: week | G2: Previous semester | I2: week
A3: Banking and Financial Services | B3: Unknown | C3: Every ____ months | E3: month | G3: Previous month | I3: month
A4: Broadcasting | C4: Unknown | E4: year | G4: Not specified | I4: year
A5: Chemicals | E5: unit of production | I5: Not specified
A6: Construction | E6: unit of revenue
A7: Cosmetics / Personal Care | E7: Not specified
A8: Extracting / Production
A9: IT/ITES & Electronics
A10: Materials
A11: Mining & Metals
A12: Personal Accessories
A13: Pharmaceuticals
A14: Power (Generation/Distribution)
A15: Processed food and beverages
A16: Refining and Marketing
A17: Telecom
A18: Others

Sheet Sheet3 (hidden)

Sheet START
F1: India 2014v12

Sheet Sheet4 (hidden)

Sheet Summary
A1: General data | B1: Name of the company | E1: India 2014v12
B2: Sector of operations | C2: Chemicals | H2: Maximum possible score
B3: Sustainability report | C3: No | E3: Total score | F3: =SUM(L:L) -> 0 | H3: ='Maximum scores'!X3 -> 87 | J3: =F3/H3 -> 0
B4: Reporting format
B5: Assured report | C5: No | N5: =MATCH($C$2,Averages!$B$2:$B$18)+1 -> 5
B6: Auditor
L7: Total | M7: Normalization
C8: Answer | D8: Hyperlink | E8: Frequency | H8: Score | K8: Total | L8: =H9 -> 0 | M8: =L8/'Maximum scores'!C3 -> 0 | N8: =HLOOKUP($A$9,Averages!$B$1:$W$18,Summary!$N$5,FALSE) -> 0.5 | O8: =IF(L8>N8,"ABOVE AVERAGE","BELOW AVERAGE") -> BELOW AVERAGE
A9: Disclosure and labelling | B9: Does the Company publish a BR or a Sustainability Report? What is the hyperlink for viewing this report? How frequently it is published? | H9: =Scoring!D4 -> 0 | DW9: No | DX9: asdfmafer | DZ9: mafer
B11: Parameter | C11: Answer | D11: Details | H11: Score | K11: Total | L11: =SUM(H12:H15) -> 0 | M11: =L11/'Maximum scores'!D3 -> 0 | N11: =HLOOKUP($A$12,Averages!$B$1:$W$18,Summary!$N$5,FALSE) -> 0.6 | O11: =IF(L11>N11,"ABOVE AVERAGE","BELOW AVERAGE") -> BELOW AVERAGE
A12: Board structure and independence | B12: Details on composition of the board | H12: =Scoring!G4 -> 0
B13: Frequency with which the board and Chief executive meets | H13: =Scoring!I4 -> 0
B14: Details on who is responsible for the sutainability reporting | H14: =Scoring!L4 -> 0
B15: Details on frequency whith which the sustainability performance is reviewed | H15: =Scoring!N4 -> 0
C17: Existance | D17: Shared | E17: Details | H17: Score | K17: Total | L17: =SUM(H18:H24) -> 0 | M17: =L17/'Maximum scores'!E3 -> 0 | N17: =HLOOKUP($A$18,Averages!$B$1:$W$18,Summary!$N$5,FALSE) -> 0.625 | O17: BELOW AVERAGE
A18: Policies, standards, codes of conduct | B18: Indicate whether the organization has a written code of ethics that has been communicated to employees. | H18: =Scoring!R4 -> 0
B19: Does the policy relating to ethics, bribery and corruption cover only the company? Yes/ No. Does it extend to the Group/Joint Ventures/ Suppliers/Contractors/NGOs /Others? | H19: =Scoring!V4 -> 0
B20: Externally developed economic, environmental, and social charters, principles, or other initiatives to which the organization subscribes or endorses. | H20: =Scoring!Y4 -> 0
B21: Has the policy been formally communicated to all relevant internal and external stakeholders? | H21: =Scoring!AB4 -> 0
B22: Does the company have in-house structure to implement the policy/policies. | H22: =Scoring!AE4 -> 0
B23: Does the Company have a grievance redressal mechanism related to the policy/policies to address stakeholders’ grievances related to the policy/policies? | H23: =Scoring!AH4 -> 0
B24: Has the company carried out independent 3 audit/evaluation of the working of this policy by an internal or external agency? | H24: =Scoring!AK4 -> 0
C26: Disclosure | D26: Details | J26: Score | K26: Total | L26: =SUM(J27:J31) -> 0 | M26: =L26/'Maximum scores'!F3 -> 0 | N26: =HLOOKUP($A$27,Averages!$B$1:$W$18,Summary!$N$5,FALSE) -> 0.3409090909 | O26: BELOW AVERAGE
A27: Communication and engagement | B27: List of stakeholder groups engaged by the organization | J27: =Scoring!AN4 -> 0
B28: Key topics and concerns that have been raised through stakeholder engagement, and how the organization has responded to those key topics and concerns, including through its reporting | J28: =Scoring!AR4 -> 0
B29: How many stakeholder complaints have been received in the past financial year and what percentage was satisfactorily resolved by the management? | J29: =Scoring!AZ4 -> 0
B30: Out of the above, has the company identified the disadvantaged, vulnerable & marginalized stakeholders. Are there any special initiatives taken by the company to engage with the disadvantaged, vulnerable and marginalized stakeholders. | J30: =Scoring!BE4 -> 0
B31: Is there any case filed by any stakeholder against the company regarding unfair trade practices, irresponsible advertising and/or anti-competitive behaviour during the last five years and pending as on end of financial year. | J31: =Scoring!BI4 -> 0
C33: Disclosure | D33: Details | H33: Score | K33: total | L33: =SUM(H34:H36) -> 0 | M33: =L33/'Maximum scores'!G3 -> 0 | N33: =HLOOKUP($A$34,Averages!$B$1:$W$18,Summary!$N$5,FALSE) -> 0.5454545455 | O33: BELOW AVERAGE
A34: Marketing and ethical advertising | B34: Programs for adherence to laws, standards, and voluntary codes related to marketing and voluntary codes related to marketing promotion, and sponsorship. | H34: =Scoring!BL4 -> 0
B35: Total number of incidents of non-compliance with regulations and voluntary codes concerning product and service information and labelling, by type of outcomes. | H35: =Scoring!BP4 -> 0
B36: Does the company display product information on the product label, over and above what is mandated as per local laws? Yes/No/N.A. /Remarks (additional information) | H36: =Scoring!BS4 -> 0
C38: Disclosure | D38: Details | E38: Per | F38: Related to | G38: Score | K38: Total | L38: =SUM(G39:G40) -> 0 | M38: =L38/'Maximum scores'!H3 -> 0 | N38: =HLOOKUP(A39,Averages!$B$1:$W$18,Summary!$N$5,FALSE) -> 0.3636363636 | O38: BELOW AVERAGE
A39: Child and forced labour | B39: Is there a policy against child labor / forced labour in the supply chain / partners / contractors? | G39: =Scoring!BV4 -> 0
B40: Have there been any number of complaints relating to child labour, forced labour, involuntary labour, sexual harassment in the last financial year and pending, as on the end of the financial year. | G40: =Scoring!BZ4 -> 0
C42: Disclosure | D42: Details | E42: Per | F42: Related to | G42: Score | K42: Total | L42: =SUM(G43:G45) -> 0 | M42: =L42/'Maximum scores'!I3 -> 0 | N42: =HLOOKUP(A43,Averages!$B$1:$W$18,Summary!$N$5,FALSE) -> 0.5 | O42: BELOW AVERAGE
A43: Employee health, safety and wellness / Training and Development | B43: Average hours of training per year per employee by employee category. | G43: =Scoring!CD4 -> 0
B44: What percentage of your under mentioned employees were given safety & skill up-gradation training in the last year? | G44: =Scoring!CH4 -> 0
B45: Rates of injury, occupational diseases, lost days, and absenteeism, and number of work-related fatalities | G45: =Scoring!CL4 -> 0
C47: Disclosure | D47: Details | E47: Per | F47: Related to | G47: Score | K47: Total | L47: =SUM(G48:G49) -> 0 | M47: =L47/'Maximum scores'!J3 -> 0 | N47: =HLOOKUP(A48,Averages!$B$1:$W$18,Summary!$N$5,FALSE) -> 0.4545454545 | O47: BELOW AVERAGE
A48: Customer satisfaction | B48: What percentage of customer complaints/consumer cases are pending as on the end of financial year. | G48: =Scoring!CP4 -> 0
B49: Did your company carry out any consumer survey/ consumer satisfaction trends? | G49: =Scoring!CS4 -> 0
K50: Total | L50: =SUM(G52:G54) -> 0 | M50: =L50/'Maximum scores'!K3 -> 0 | N50: =HLOOKUP(A52,Averages!$B$1:$W$18,Summary!$N$5,FALSE) -> 0.3 | O50: BELOW AVERAGE
C51: Disclosure | D51: Details | E51: Per | F51: Related to | G51: Score
A52: Regulatory and legal challenges | B52: Monetary value of significant fines for noncompliance with laws and regulations concerning the provision and use of products and services. | G52: =Scoring!CW4 -> 0
B53: Number of show cause/ legal notices received from CPCB/SPCB which are pending (i.e. not resolved to satisfaction) as on end of Financial Year. | G53: =Scoring!DA4 -> 0
B54: Are there any court cases being reported? | G54: =Scoring!DE4 -> 0
C56: Disclosure | D56: Details | E56: Per | F56: Related to | G56: Score | K56: Total | L56: =SUM(G57:G59) -> 0 | M56: =L56/'Maximum scores'!L3 -> 0 | N56: =HLOOKUP(A57,Averages!$B$1:$W$18,Summary!$N$5,FALSE) -> 0.125 | O56: BELOW AVERAGE
A57: Labour relations and union practices | B57: Health and safety topics covered in formal agreements with trade unions. | G57: =Scoring!DH4 -> 0
B58: Please indicate the total number of employees hired on temporary/ contractual/ casual basis | G58: =Scoring!DL4 -> 0
B59: What percentage of the permanent employees are members of formal employee association? | G59: =Scoring!DP4 -> 0
C61: Disclosure | D61: Details | E61: Per | F61: Related to | G61: Score | K61: Total | L61: =SUM(G62:G67) -> 0 | M61: =L61/'Maximum scores'!M3 -> 0 | N61: =HLOOKUP(A62,Averages!$B$1:$W$18,Summary!$N$5,FALSE) -> 0.2575757576 | O61: BELOW AVERAGE
A62: Supply chain standards and selection | B62: Percentage and total # of significant suppliers and contractors that have undergone screening on human rights and actions taken. | G62: =Scoring!DT4 -> 0
B63: Total number of incidents of discrimination and actions taken. | G63: =Scoring!DX4 -> 0
B64: Does the company have procedures in place for sustainable sourcing (including transportation)? i. If yes, what percentage of your inputs was sourced sustainably? | G64: =Scoring!EB4 -> 0
B65: Has the company taken any steps to procure goods and services from local & small producers, including communities surrounding their place of work? If yes, what steps have been taken to improve their capacity and capability of local and small vendors? | G65: =Scoring!EF4 -> 0
B66: Does the policy of the company on human rights cover only the company or extend to the Group/ Joint Ventures/ Suppliers/ Contractors/ NGOs/Others? | G66: =Scoring!EI4 -> 0
B67: Does the policy related environment cover only the company or extends to the Group/ Joint Ventures/ Suppliers/ Contractors / NGOs/ others | G67: =Scoring!EL4 -> 0
C69: Disclosure | D69: Product A | E69: Product B | F69: Product C | G69: Score | K69: Total | L69: =SUM(G70:G80) -> 0 | M69: =L69/'Maximum scores'!N3 -> 0 | N69: =HLOOKUP(A70,Averages!$B$1:$W$18,Summary!$N$5,FALSE) -> 0.3888888889 | O69: BELOW AVERAGE
A70: Product life cycle impact | B70: List up to 3 of your products or services whose design has incorporated social or environmental concerns, risks and/or opportunities. | G70: =Scoring!EO4 -> 0
B71: For each such product, provide the details in respect of resource use per unit of product during sourcing/production/distribution throughout the value chain. | D71: Details | E71: Per | F71: Related to
B72: Product A | C72: Sourcing | G72: =Scoring!FZ4 -> 0
C73: Production
C74: Distribution
B75: Product B | C75: Sourcing
C76: Production
C77: Distribution
B78: Product C | C78: Sourcing
C79: Production
C80: Distribution
C82: Disclosure | D82: Details | E82: Details | F82: Per | G82: Related to | H82: Score | K82: Total | L82: =SUM(H83) -> 0 | M82: =L82/'Maximum scores'!O3 -> 0 | N82: =HLOOKUP(A83,Averages!$B$1:$W$18,Summary!$N$5,FALSE) -> 0 | O82: =IF(L82>N82,"ABOVE AVERAGE","BELOW AVERAGE") -> BELOW AVERAGE
A83: Biodiversity impacts | B83: Strategies, current actions, and future plans for managing impacts on biodiversity. | H83: =Scoring!GE4 -> 0
C85: Disclosure | D85: Details | E85: Details | F85: Per | G85: Related to | H85: Score | K85: Total | L85: =SUM(H86:H88) -> 0 | M85: =L85/'Maximum scores'!P3 -> 0 | N85: =HLOOKUP(A86,Averages!$B$1:$W$18,Summary!$N$5,FALSE) -> 0.4375 | O85: BELOW AVERAGE
A86: Climate Change Risk | B86: Does the company have strategies/ initiatives to address global environmental issues such as climate change, global warming, etc.? Y/N. If yes, please give hyperlink for webpage etc. | H86: =Scoring!GJ4 -> 0
B87: Does the company identify and assess potential environmental risks? Y/N | H87: =Scoring!GO4 -> 0
B88: Does the company have any project related to Clean Development Mechanism? If Yes, whether any environmental compliance report is filed? | H88: =Scoring!GT4 -> 0
C90: Known | D90: Number | E90: Unit | F90: Per | G90: Relative to | H90: Score | K90: Total | L90: =SUM(H91:H94) -> 0 | M90: =L90/'Maximum scores'!Q3 -> 0 | N90: =HLOOKUP(A91,Averages!$B$1:$W$18,Summary!$N$5,FALSE) -> 0.48 | O90: BELOW AVERAGE
A91: Energy Management | B91: Total energy consumed by the business entity for its operations | H91: =Scoring!GY4 -> 0
B92: Use of energy saving processes and the total energy saved due to use of such processes | H92: =Scoring!HD4 -> 0
B93: Use of renewable energy | H93: =Scoring!HI4 -> 0
B94: Has the company undertaken any other initiatives on – clean technology, energy efficiency, renewable energy, etc. Y/N. If yes, please give hyperlink for web page etc. | H94: =Scoring!HM4 -> 0
C96: Known | D96: Number | E96: Tons of | F96: Per | G96: Relative to | H96: Score | K96: Total | L96: =SUM(H97:H99) -> 0 | M96: =L96/'Maximum scores'!R3 -> 0 | N96: =HLOOKUP(A97,Averages!$B$1:$W$18,Summary!$N$5,FALSE) -> 
A97: GHG emissions and air pollution | B97: Total direct and indirect greenhouse gas emissions by weight. | H97: =Scoring!HQ4 -> 0
B98: Emissions of ozone-depleting substances by weight | H98: =Scoring!HU4 -> 0
B99: NO, SO, and other significant air emissions by type and weight. | H99: =Scoring!HY4 -> 0
C101: Disclosure | D101: Detail | E101: Detail | F101: Amount | G101: Per | H101: Relative to | I101: Score | K101: Total | L101: =SUM(I102:I109) -> 0 | M101: =Summary!L101/'Maximum scores'!S3 -> 0 | N101: =HLOOKUP(A102,Averages!$B$1:$W$18,Summary!$N$5,FALSE) -> 0.3695652174 | O101: BELOW AVERAGE
A102: Waste management and effluents | B102: Statement on discharge of water and effluents indicating the treatment done before discharge and the destination of disposal | I102: =Scoring!IE4 -> 0
B103: Total weight of waste by type and disposal method | I103: =Scoring!IR4 -> 0
B104: Total weight of waste by type and disposal method
B105: Amount of hazardous waste created by the organization's operations during the reporting period. Note: hazardous waste as defined by national legislation at the point of generation. | I105: =Scoring!IV4 -> 0
B106: Amount of non-hazardous waste created by the organization's operations during the reporting period. | I106: =Scoring!IZ4 -> 0
B107: Waste reductions achieved during the reporting period through programs for substitution, recycling or recovery. | I107: =Scoring!JD4 -> 0
B108: Does the company have a mechanism to recycle products and waste? If yes what is the percentage of recycling of products and waste | I108: =Scoring!JH4 -> 0
B109: Are the Emissions/Waste generated by the company within the permissible limits given by CPCB/SPCB for the financial year being reported? | I109: =Scoring!JK4 -> 0
A110: Water Management | B110: Water sources significantly affected by withdrawal of water. | I110: =Scoring!JN4 -> 0 | K110: Total | L110: =SUM(I110:I112) -> 0 | M110: =L110/'Maximum scores'!T3 -> 0 | N110: =HLOOKUP(A110,Averages!$B$1:$W$18,Summary!$N$5,FALSE) -> 0.5454545455 | O110: =IF(L110>N110,"ABOVE AVERAGE","BELOW AVERAGE") -> BELOW AVERAGE
B111: Total water consumed | I111: =Scoring!JW4 -> 0
B112: Percentage of water that is recycled and reused
A113: Environmental expenditure | B113: Total environmental protection expenditures and investments by type. | I113: =Scoring!KF4 -> 0
B114: Total environmental protection expenditures and investments by type. | K114: Total | L114: =I113 -> 0 | M114: =L114/'Maximum scores'!U3 -> 0 | N114: =HLOOKUP(A113,Averages!$B$1:$W$18,Summary!$N$5,FALSE) -> 0.3 | O114: =IF(L114>N114,"ABOVE AVERAGE","BELOW AVERAGE") -> BELOW AVERAGE
C116: Disclosure | D116: Details | E116: Score | H116: Total | I116: =SUM(E117:E118) -> 0
A117: Community development | B117: Details of community investment and development work undertaken indicating the financial resources deployed and the impact of this work with a longer term perspective
B118: Details of innovative practices, products and services that particularly enhance access and allocation of resources to the poor and the marginalized groups of the society
C120: Disclosure | D120: Details | E120: Score | K120: total | L120: =SUM(E121:E122) -> 0 | M120: =L120/'Maximum scores'!V3 -> 0 | N120: =HLOOKUP(A121,Averages!$B$1:$W$18,Summary!$N$5,FALSE) -> 0.25 | O120: BELOW AVERAGE
A121: Political and lobbying | B121: Public policy positions and participation in public policy development and lobbying.
B122: Total value of financial and in-kind contributions to political parties, politicians, and related institutions by country.
C124: Disclosure | D124: Detail | E124: Per | F124: Relative to | G124: Score | K124: Total | L124: =SUM(G125:G128)+I116 -> 0 | M124: =L124/'Maximum scores'!W3 -> 0 | N124: =HLOOKUP(A125,Averages!$B$1:$W$18,Summary!$N$5,FALSE) -> 0.625 | O124: BELOW AVERAGE
A125: Community Developemnt | B125: Does the company have specified programmes/initiatives/projects in pursuit of the policy related to CSR? If yes details thereof. | G125: =Scoring!KU4 -> 0
B126: Are the programmes/projects undertaken through in-house team/own foundation/external NGO/government structures/any other organization? | G126: =Scoring!KW4 -> 0
B127: What is your company’s direct contribution to community development projects- Amount in INR and the details of the projects undertaken. | G127: =Scoring!LA4 -> 0
B128: Have you taken steps to ensure that this community development initiative is successfully adopted by the community? Please explain in 50 words, or so. | G128: =Scoring!LD4 -> 0

Sheet Scoring (hidden)
E1: Board structure and independence | AL1: Communication and engagement | BJ1: Marketing and ethical advertising | BT1: Child and forced labour | CA1: Employee health, safety and wellness/ training and development | CM1: Customer Satisfaction | CT1: Regulatory and legal challenges | DF1: Labour relations and union practices | DQ1: Supply chain standards and selection | EM1: Product life cycle use impact | GA1: Biodiversity impacts | GF1: Climate change risk | GU1: Energy Management | HN1: GHG emissions and air pollution | KM1: Lobbying and political contributions | KS1: Community development
A2: Disclosure and labeling | E2: Details on composition of the board | H2: Details about frequency with which the board / bord committee and chief executive meet | J2: Is there a person responsible for the sustainability disclosure | M2: Details on the frequency with which the sustainability performance is reviewed | O2: Indicate whether the organization has a written code of ethics that has been communicated to employees. | S2: Does the policy relating to ethics, bribery and corruption cover only the company? Yes/ No. Does it extend to the Group/Joint Ventures/ Suppliers/Contractors/NGOs /Others? | W2: Externally developed economic, environmental, and social charters, principles, or other initiatives to which the organization subscribes or endorses. | Z2: Has the policy been formally communicated to all relevant internal and external stakeholders? | AC2: Does the company have in-house structure to implement the policy/policies. | AF2: Does the Company have a grievance redressal mechanism related to the policy/policies to address stakeholders’ grievances related to the policy/policies? | AI2: Has the company carried out independent 3 audit/evaluation of the working of this policy by an internal or external agency? | AL2: List of stakeholder groups engaged by the organization | AO2: What are the key topics / issues for stakeholder consultations | AS2: How many stakeholder complaints have been received in the past financial year and what percentage was satisfactorily resolved by the management? | BA2: Out of the above, has the company identified the disadvantaged, vulnerable & marginalized stakeholders. Are there any special initiatives taken by the company to engage | BF2: Is there any case filed by any stakeholder against the company regarding unfair trade practices, irresponsible advertising and/or anti-competitive behaviour during the last five years and pending as on end of financial year. | BJ2: Programs for adherence to laws, standards, and voluntary codes related to marketing and voluntary codes related to marketing promotion, and sponsorship. | BM2: Total number of incidents of non-compliance with regulations and voluntary codes concerning product and service information and labelling, by type of outcomes. | BQ2: Does the company display product information on the product label, over and above what is mandated as per local laws? Yes/No/N.A. /Remarks (additional information) | BT2: Is there a policy against child labor / forced labour in the supply chain / partners / contractors? | BW2: Have there been any number of complaints relating to child labour, forced labour, involuntary labour, sexual harassment in the last financial year and pending, as on the end of the financial year. | CA2: Average hours of training per year per employee by employee category. | CE2: How many of your employees were given safety & skill up-gradation training in the last year? | CI2: Rates of injury, occupational diseases, lost days, and absenteeism, and number of work-related fatalities | CM2: What percentage of customer complaints/consumer cases are pending as on the end of financial year. | CQ2: Did your company carry out any consumer survey/ consumer satisfaction trends? | CT2: Monetary value of significant fines for noncompliance with laws and regulations concerning the provision and use of products and services. | CX2: Number of show cause/ legal notices received from CPCB/SPCB which are pending (i.e. not resolved to satisfaction) as on end of Financial Year. | DB2: Are there any court cases being reported? | DF2: Health and safety topics covered in formal agreements with trade unions. | DI2: Please indicate the total number of employees hired on temporary/ contractual/ casual basis | DM2: What percentage of the permanent employees are members of formal employee association? | DQ2: Percentage and total # of significant suppliers and contractors that have undergone screening on human rights and actions taken. | DU2: Total number of incidents of discrimination and actions taken. | DY2: Does the company have procedures in place for sustainable sourcing (including transportation)? i. If yes, what percentage of your inputs was sourced sustainably? | EC2: Has the company taken any steps to procure goods and services from local & small producers, including communities surrounding their place of work? If yes, what steps have been taken to improve their capacity and capability of local and small vendors? | EG2: Does the policy of the company on human rights cover only the company or extend to the Group/ Joint Ventures/ Suppliers/ Contractors/ NGOs/Others? | EJ2: Does the policy related environment cover only the company or extends to the Group/ Joint Ventures/ Suppliers/ Contractors / NGOs/ others | EM2: List up to 3 of your products or services whose design has incorporated social or environmental concerns, risks and/or opportunities. | EP2: For each such product, provide the details in respect of resource use per unit of product during sourcing/production/distribution throughout the value chain. | GA2: Strategies, current actions, and future plans for managing impacts on biodiversity. | GF2: Does the company have strategies/ initiatives to address global environmental issues such as climate change, global warming, etc.? Y/N. If yes, please give hyperlink for webpage etc. | GK2: Does the company identify and assess potential environmental risks? Y/N | GP2: Does the company have any project related to Clean Development Mechanism? If Yes, whether any environmental compliance report is filed? | GU2: Total energy consumed | GZ2: Statement on use of energy saving processes and the total energy saved due to use of such processes | HE2: Use of renewable energy as percentage of total energy consumption | HJ2: Has the company undertaken any other initiatives on – clean technology, energy efficiency, renewable energy, etc. Y/N. If yes, please give hyperlink for web page etc. | HN2: Total direct and indirect greenhouse gas emissions by weight. | HR2: Emissions of ozone-depleting substances by weight | HV2: NO, SO, and other significant air emissions by type and weight. | HZ2: Statement on discharge of water and effluents indicating the treatment done before discharge and the destination of disposal | IF2: Total weight of waste by type and disposal method | IS2: Amount of hazardous waste created by the organization's operations during the reporting period. Note: hazardous waste as defined by national legislation at the point of generation. | IW2: Amount of non-hazardous waste created by the organization's operations during the reporting period. | JA2: Waste reductions achieved during the reporting period through programs for substitution, recycling or recovery. | JE2: Does the company have a mechanism to recycle products and waste? If yes what is the percentage of recycling of products and waste | JI2: Are the Emissions/Waste generated by the company within the permissible limits given by CPCB/SPCB for the financial year being reported? | JL2: Water sources significantly affected by withdrawal of water. | JO2: Total water consumed and the percentage of water that is recycled and reused | JX2: Total environmental protection expenditures and investments by type. | KG2: Details of community investment and development work undertaken indicating the financial resources deployed and the impact of this work with a longer term perspective | KJ2: Details of innovative practices, products and services that particularly enhance access and allocation of resources to the poor and the marginalized groups of the society | KM2: Public policy positions and participation in public policy development and lobbying. | KP2: Total value of financial and in-kind contributions to political parties, politicians, and related institutions by country. | KS2: Does the company have specified programmes/initiatives/projects in pursuit of the policy related to CSR? If yes details thereof. | KV2: Are the programmes/projects undertaken through in-house team/own foundation/external NGO/government structures/any other organization? | KX2: What is your company’s direct contribution to community development projects- Amount in INR and the details of the projects undertaken. | LB2: Have you taken steps to ensure that this community development initiative is successfully adopted by the community? Please explain in 50 words, or so.
A3: Disclosure and labeling | B3: Details | C3: Frequency | D3: Score | E3: Disclosure | F3: Number of non executive directors | G3: Score | I3: Score | J3: Detail | K3: Disclosure | L3: Score | N3: Score | O3: Disclosure | P3: Shared | Q3: Details | R3: Score | S3: Disclosure | T3: Shared | U3: Details | V3: Score | W3: Disclosure | X3: Details | Y3: Score | Z3: Disclosure | AA3: Details | AB3: Score | AC3: Disclosure | AD3: Details | AE3: Score | AF3: Disclosure | AG3: Details | AH3: Score | AI3: Disclosure | AJ3: Details | AK3: Score | AL3: Disclosure | AM3: Details | AN3: Score | AO3: Disclosure 1 | AP3: Disclosure 2 | AQ3: Details | AR3: Score | AS3: Disclosure | AT3: Per | AU3: Relative to | AV3: Score | AW3: Disclosure | AX3: Per | AY3: Relative to | AZ3: Score | BA3: Disclosure 1 | BB3: Disclosure 2 | BC3: Details 1 | BD3: Details 2 | BE3: Score | BF3: Disclosure | BG3: Per | BH3: Relative to | BI3: Score | BJ3: Disclosure | BK3: Details | BL3: Score | BM3: Disclosure | BN3: Per | BO3: Relative to | BP3: Score | BQ3: Disclosure | BR3: Details | BS3: Score | BT3: Disclosure | BU3: Details | BV3: Score | BW3: Disclosure | BX3: Per | BY3: Relative to | BZ3: Score | CA3: Disclosure | CB3: Per | CC3: Relative to | CD3: Score | CE3: Disclosure | CF3: Per | CG3: Relative to | CH3: Score | CI3: Disclosure | CJ3: Per | CK3: Relative to | CL3: Score | CM3: Disclosure | CN3: Per | CO3: Relative to | CP3: Score | CQ3: Disclosure | CR3: Details | CS3: Score | CT3: Disclosure | CU3: Details | CW3: Score | CX3: Disclosure | CY3: Details | DA3: Score | DB3: Disclosure | DC3: Details | DE3: Score | DF3: Disclosure | DG3: Details | DH3: Score | DI3: Disclosure | DJ3: Per | DK3: Relative to | DL3: Score | DM3: Disclosure | DN3: Per | DO3: Relative to | DP3: Score | DQ3: Disclosure | DR3: Per | DS3: Relative to | DT3: Score | DU3: Disclosure | DV3: Per | DW3: Relative to | DX3: Score | DY3: Disclosure | DZ3: Per | EA3: Relative to | EB3: Score | EC3: Disclosure | ED3: Details | EF3: Score | EG3: Disclosure | EH3: Details | EI3: Score | EJ3: Disclosure | EK3: Details | EL3: Score | EM3: Disclosure | EN3: Details | EO3: Score | EP3: Disclosure | EQ3: Per | ER3: Relative to | ES3: Score | ET3: Disclosure | EU3: Per | EV3: Relative to | EW3: Score | EX3: Disclosure | EY3: Per | EZ3: Relative to | FA3: Score | FB3: Disclosure | FC3: Per | FD3: Relative to | FE3: Score | FF3: Disclosure | FG3: Per | FH3: Relative to | FI3: Score | FJ3: Disclosure | FK3: Per | FL3: Relative to | FM3: Score | FN3: Disclosure | FO3: Per | FP3: Relative to | FQ3: Score | FR3: Disclosure | FS3: Per | FT3: Relative to | FU3: Score | FV3: Disclosure | FW3: Per | FX3: Relative to | FY3: Score | FZ3: Final | GA3: Disclosure | GB3: Details | GC3: Per | GD3: Relative to | GE3: Score | GF3: Disclosure | GG3: Details | GH3: Per | GI3: Relative to | GJ3: Score | GK3: Disclosure | GL3: Details | GM3: Per | GN3: Relative to | GO3: Score | GP3: Disclosure | GQ3: Details | GR3: Per | GS3: Relative to | GT3: Score | GU3: Disclosure | GW3: Per | GX3: Relative to | GY3: Score | GZ3: Disclosure | HB3: Per | HC3: Relative to | HD3: Score | HE3: Disclosure | HG3: Per | HH3: Relative to | HI3: Score | HJ3: Disclosure | HK3: Detail | HM3: Score | HN3: Disclosure | HO3: Per | HP3: Relative to | HQ3: Score | HR3: Disclosure | HS3: Per | HT3: Relative to | HU3: Score | HV3: Disclosure | HW3: Per | HX3: Relative to | HY3: Score | HZ3: Disclosure | IA3: Details | IB3: Details | IC3: Per | ID3: Relative to | IE3: Score | IF3: Disclosure | IG3: Details | IH3: Details | II3: Per | IJ3: Relative to | IK3: Score | IL3: Disclosure | IM3: Details | IN3: Details | IO3: Per | IP3: Relative to | IQ3: Score | IR3: Final score | IS3: Disclosure | IT3: Per | IU3: Relative to | IV3: Score | IW3: Disclosure | IX3: Per | IY3: Relative to | IZ3: Score | JA3: Disclosure | JB3: Per | JC3: Relative to | JD3: Score | JE3: Disclosure | JF3: Per | JG3: Relative to | JH3: Score | JI3: Disclosure | JJ3: Details | JK3: Score | JL3: Disclosure | JM3: Details | JN3: Score | JO3: Disclosure | JP3: Per | JQ3: Relative to | JR3: Score | JS3: Disclosure | JT3: Per | JU3: Relative to | JV3: Score | JW3: Final score | JX3: Disclosure | JY3: Per | JZ3: Relative to | KA3: Score | KB3: Disclosure | KC3: Per | KD3: Relative to | KE3: Score | KF3: Final score | KG3: Disclosure | KH3: Details | KI3: Score | KJ3: Disclosure | KK3: Details | KL3: Score | KM3: Disclosure | KN3: Details | KO3: Score | KP3: Disclosure | KQ3: Details | KR3: Score | KS3: Disclosure | KT3: Details | KU3: Score | KV3: Disclosure | KW3: Score | KX3: Disclosure | KY3: Per | KZ3: Relative to | LA3: Score | LB3: Disclosure | LC3: Details | LD3: Score
A4: =IF(ISBLANK(Summary!C9)=TRUE,0,IF(Summary!C9=Environment!$B$3,0,0.5)) -> 0 | C4: =IF(ISBLANK(Summary!E9)=TRUE,0,IF(Summary!E9=Environment!$C$4,0,IF(Summary!E9=Environment!$C$1,0.25,IF(ISBLANK(Summary!F9)=TRUE,0,IF(ISTEXT(Summary!F9)=TRUE,0,0.5))))) -> 0 | D4: =SUM(A4:C4) -> 0 | E4: =IF(ISBLANK(Summary!C12)=TRUE,0,IF(Summary!C12=Environment!$B$3,0,0.25)) -> 0 | F4: =IF(ISBLANK(Summary!D12)=TRUE,0,0.25) -> 0 | G4: =SUM(E4:F4) -> 0 | H4: =Summary!D13 -> 0 | I4: =IF(Summary!E13=Environment!$C$4,0,IF(Summary!E13=Environment!$C$1,0.25,IF(ISBLANK(Summary!D13)=TRUE,0,IF(ISTEXT(Summary!D13)=TRUE,0,0.5)))) -> 0 | J4: =IF(ISBLANK(Summary!C14)=TRUE,0,IF(Summary!C14=Environment!$B$3,0,0.25)) -> 0 | K4: =IF(Summary!C14=Environment!$B$1,IF(COUNTA(Summary!D14:'Summary'!E14)=0,0,0.25),0) -> 0 | L4: =SUM(J4:K4) -> 0 | M4: =Summary!D15 -> 0 | N4: =IF(Summary!E15=Environment!$C$4,0,IF(Summary!E15=Environment!$C$1,0.25,IF(ISBLANK(Summary!D15)=TRUE,0,IF(ISTEXT(Summary!D15)=TRUE,0,0.5)))) -> 0 | O4: =IF(ISBLANK(Summary!C18)=TRUE,0,IF(Summary!C18=Environment!$B$3,0,0.25)) -> 0 | P4: =IF(ISBLANK(Summary!D18)=TRUE,0,(IF(Summary!D18=Environment!$B$3,0,0.25))) -> 0 | Q4: =IF(ISBLANK(Summary!E18)=TRUE,0,0.5) -> 0 | R4: =SUM(O4:Q4) -> 0 | S4: =IF(ISBLANK(Summary!C19)=TRUE,0,IF(Summary!C19=Environment!$B$3,0,0.25)) -> 0 | T4: =IF(S4=0,0,IF(ISBLANK(Summary!D19)=TRUE,0,IF(Summary!D19=Environment!$B$3,0,0.25))) -> 0 | U4: =IF(ISBLANK(Summary!E19)=TRUE,0,0.5) -> 0 | V4: =SUM(S4:U4) -> 0 | W4: =IF(ISBLANK(Summary!C20)=TRUE,0,IF(Summary!C20=Environment!$B$3,0,0.25)) -> 0 | X4: =IF(ISBLANK(Summary!E20)=TRUE,0,0.25) -> 0 | Y4: =SUM(W4:X4) -> 0 | Z4: =IF(ISBLANK(Summary!C21)=TRUE,0,IF(Summary!C21=Environment!$B$3,0,0.25)) -> 0 | AA4: =IF(ISBLANK(Summary!E21)=TRUE,0,0.25) -> 0 | AB4: =SUM(Z4:AA4) -> 0 | AC4: =IF(ISBLANK(Summary!C22)=TRUE, 0,IF(Summary!C22=Environment!$B$3,0,0.25)) -> 0 | AD4: =IF(ISBLANK(Summary!E22)=TRUE,0,0.25) -> 0 | AE4: =SUM(AC4:AD4) -> 0 | AF4: =IF(ISBLANK(Summary!C23)=TRUE,0,IF(Summary!C23=Environment!$B$3,0,0.25)) -> 0 | AG4: =IF(ISBLANK(Summary!E23)=TRUE,0,0.25) -> 0 | AH4: =SUM(AF4:AG4) -> 0 | AI4: =IF(ISBLANK(Summary!C24)=TRUE,0,IF(Summary!C24=Environment!$B$3,0,0.25)) -> 0 | AJ4: =IF(ISBLANK(Summary!E24)=TRUE,0,0.25) -> 0 | AK4: =SUM(AI4:AJ4) -> 0 | AL4: =IF(ISBLANK(Summary!C27)=TRUE,0,IF(Summary!C27=Environment!$B$3,0,0.25)) -> 0 | AM4: =IF(ISBLANK(Summary!D27)=TRUE,0,0.25) -> 0 | AN4: =SUM(AL4:AM4) -> 0 | AO4: =IF(ISBLANK(Summary!C28)=TRUE,0,IF(Summary!C28=Environment!$B$3,0,0.5)) -> 0 | AP4: =IF(ISBLANK(Summary!D28)=TRUE,0,IF(Summary!D28=Environment!$B$3,0,0.25)) -> 0 | AQ4: =IF(ISBLANK(Summary!E28)=TRUE,0,0.25) -> 0 | AR4: =SUM(AO4:AQ4) -> 0 | AS4: =IF(Summary!C29=Environment!$B$3,0,IF(ISBLANK(Summary!D29)=TRUE,0,IF(ISTEXT(Summary!D29)=TRUE,0,0.5))) -> 0 | AT4: =IF(AS4=0,0,IF(ISBLANK(Summary!E29)=TRUE,0,IF(Summary!E29=Environment!$E$7,0,IF(Summary!E29=Environment!$E$6,1.25,IF(Summary!E29=Environment!$E$5,1.25,0.75))))) -> 0 | AU4: =IF(AS4=0,0,IF(ISBLANK(Summary!F29)=TRUE,0,IF(Summary!F29=Environment!$E$7,0,1)*IF(AT4=0.75,1.5,IF(AT4=1.25,1.75,1)))) -> 0 | AV4: =MAX(AS4,AT4,AU4) -> 0 | AW4: =IF(ISBLANK(Summary!G29)=TRUE,0,IF(ISTEXT(Summary!G29)=TRUE,0,0.5)) -> 0 | AY4: =IF(AW4=0,0,IF(ISBLANK(Summary!I29)=TRUE,0,IF(Summary!I29=Environment!$E$7,0,1.5))) -> 0 | AZ4: =MAX(AW4,AX4,AY4)+AV4 -> 0 | BA4: =IF(ISBLANK(Summary!C30)=TRUE,0,IF(Summary!C30=Environment!$B$3,0,0.5)) -> 0 | BB4: =IF(ISBLANK(Summary!D30)=TRUE,0,IF(Summary!D30=Environment!$B$3,0,0.25)) -> 0 | BC4: =IF(ISBLANK(Summary!E30)=TRUE,0,0.25) -> 0 | BE4: =SUM(BA4:BD4) -> 0 | BF4: =IF(ISBLANK(Summary!C31)=TRUE,0,IF(Summary!C31=Environment!$B$3,0,0.5)) -> 0 | BG4: =IF(BF4=0,0,IF(ISBLANK(Summary!D31)=TRUE,0,IF(Summary!E31=Environment!$E$7,0,IF(Summary!E31=Environment!$E$6,1.25,IF(Summary!E31=Environment!$E$5,1.25,0.75))))) -> 0 | BH4: =IF(BF4=0,0,IF(ISBLANK(Summary!F31)=TRUE,0,IF(Summary!F31=Environment!$E$7,0,1)*IF(BG4=0.75,1.5,IF(BG4=1.25,1.75,1)))) -> 0 | BI4: =MAX(BF4,BG4,BH4) -> 0 | BJ4: =IF(ISBLANK(Summary!C34)=TRUE,0,IF(Summary!C34=Environment!$B$3,0,0.25)) -> 0 | BK4: =IF(ISBLANK(Summary!D34)=TRUE,0,0.25) -> 0 | BL4: =SUM(BJ4:BK4) -> 0 | BM4: =IF(ISBLANK(Summary!C35)=TRUE,0,IF(Summary!C35=Environment!$B$3,0,0.5)) -> 0 | BN4: =IF(BM4=0,0,IF(ISBLANK(Summary!E35)=TRUE,0,IF(Summary!E35=Environment!$E$7,0,IF(Summary!E35=Environment!$E$6,1.25,IF(Summary!E35=Environment!$E$5,1.25,0.75))))) -> 0 | BO4: =IF(BM4=0,0,IF(ISBLANK(Summary!F35)=TRUE,0,IF(Summary!F35=Environment!$E$7,0,1)*IF(BN4=0.75,1.5,IF(BN4=1.25,1.75,1)))) -> 0 | BP4: =MAX(BM4,BN4,BO4) -> 0 | BQ4: =IF(ISBLANK(Summary!C36)=TRUE,0,IF(Summary!C36=Environment!$B$3,0,0.25)) -> 0 | BR4: =IF(ISBLANK(Summary!D36)=TRUE,0,0.25) -> 0 | BS4: =SUM(BQ4:BR4) -> 0 | BT4: =IF(ISBLANK(Summary!C39)=TRUE,0,IF(Summary!C39=Environment!$B$3,0,0.25)) -> 0 | BU4: =IF(ISBLANK(Summary!D39)=TRUE,0,0.25) -> 0 | BV4: =SUM(BT4:BU4) -> 0 | BW4: =IF(ISBLANK(Summary!C40)=TRUE,0,IF(Summary!C40=Environment!$B$3,0,0.5)) -> 0 | BX4: =IF(BW4=0,0,IF(ISBLANK(Summary!D40)=TRUE,0,IF(Summary!E40=Environment!$E$7,0,IF(Summary!E40=Environment!$E$6,1.25,IF(Summary!E40=Environment!$E$5,1.25,0.75))))) -> 0 | BY4: =IF(BW4=0,0,IF(ISBLANK(Summary!F40)=TRUE,0,IF(Summary!F40=Environment!$E$7,0,1)*IF(BX4=0.75,1.5,IF(BX4=1.25,1.75,1)))) -> 0 | BZ4: =MAX(BW4,BX4,BY4) -> 0 | CA4: =IF(ISBLANK(Summary!C43)=TRUE,0,IF(Summary!C43=Environment!$B$3,0,0.5)) -> 0 | CB4: =IF(CA4=0,0,IF(ISBLANK(Summary!D43)=TRUE,0,IF(Summary!E43=Environment!$E$7,0,IF(Summary!E43=Environment!$E$6,1.25,IF(Summary!E43=Environment!$E$5,1.25,0.75))))) -> 0 | CC4: =IF(CA4=0,0,IF(ISBLANK(Summary!F43)=TRUE,0,IF(Summary!F43=Environment!$E$7,0,1)*IF(CB4=0.75,1.5,IF(CB4=1.25,1.75,1)))) -> 0 | CD4: =MAX(CA4,CB4,CC4) -> 0 | CE4: =IF(ISBLANK(Summary!C44)=TRUE,0,IF(Summary!C44=Environment!$B$3,0,0.5)) -> 0 | CF4: =IF(CE4=0,0,IF(ISBLANK(Summary!D44)=TRUE,0,IF(Summary!E44=Environment!$E$7,0,IF(Summary!E44=Environment!$E$6,1.25,IF(Summary!E44=Environment!$E$5,1.25,0.75))))) -> 0 | CG4: =IF(CE4=0,0,IF(ISBLANK(Summary!F44)=TRUE,0,IF(Summary!F44=Environment!$E$7,0,1)*IF(CF4=0.75,1.5,IF(CF4=1.25,1.75,1)))) -> 0 | CH4: =MAX(CE4,CF4,CG4) -> 0 | CI4: =IF(ISBLANK(Summary!C45)=TRUE,0,IF(Summary!C45=Environment!$B$3,0,0.5)) -> 0 | CJ4: =IF(CI4=0,0,IF(ISBLANK(Summary!D45)=TRUE,0,IF(Summary!E45=Environment!$E$7,0,IF(Summary!E45=Environment!$E$6,1.25,IF(Summary!E45=Environment!$E$5,1.25,0.75))))) -> 0 | CK4: =IF(CI4=0,0,IF(ISBLANK(Summary!F45)=TRUE,0,IF(Summary!F45=Environment!$E$7,0,1)*IF(CJ4=0.75,1.5,IF(CJ4=1.25,1.75,1)))) -> 0 | CL4: =MAX(CI4,CJ4,CK4) -> 0 | CM4: =IF(ISBLANK(Summary!C48)=TRUE,0,IF(Summary!C48=Environment!$B$3,0,0.75)) -> 0 | CO4: =IF(CM4=0,0,IF(ISBLANK(Summary!D48)=TRUE,0,IF(Summary!F48=Environment!$E$7,0,1.5))) -> 0 | CP4: =MAX(CM4,CO4) -> 0 | CQ4: =IF(ISBLANK(Summary!C49)=TRUE,0,IF(Summary!C49=Environment!$B$3,0,0.25)) -> 0 | CR4: =IF(ISBLANK(Summary!D49)=TRUE,0,0.25) -> 0 | CS4: =SUM(CQ4:CR4) -> 0 | CT4: =IF(ISBLANK(Summary!C52)=TRUE,0,IF(Summary!C52=Environment!$B$3,0,0.25)) -> 0 | CU4: =IF(ISBLANK(Summary!D52)=TRUE,0,0.25) -> 0 | CW4: =SUM(CT4:CU4) -> 0 | CX4: =IF(ISBLANK(Summary!C53)=TRUE,0,IF(Summary!C53=Environment!$B$3,0,0.25)) -> 0 | CY4: =IF(ISBLANK(Summary!D53)=TRUE,0,0.25) -> 0 | DA4: =SUM(CX4:CY4) -> 0 | DB4: =IF(ISBLANK(Summary!C54)=TRUE,0,IF(Summary!C54=Environment!$B$3,0,0.25)) -> 0 | DC4: =IF(ISBLANK(Summary!D54)=TRUE,0,0.25) -> 0 | DE4: =SUM(DB4:DC4) -> 0 | DF4: =IF(ISBLANK(Summary!C57)=TRUE,0,IF(Summary!C57=Environment!$B$3,0,0.25)) -> 0 | DG4: =IF(ISBLANK(Summary!D57)=TRUE,0,0.25) -> 0 | DH4: =SUM(DF4:DG4) -> 0 | DI4: =IF(ISBLANK(Summary!C58)=TRUE,0,IF(Summary!C58=Environment!$B$3,0,0.5)) -> 0 | DJ4: =IF(DI4=0,0,IF(ISBLANK(Summary!D58)=TRUE,0,IF(Summary!E58=Environment!$E$7,0,IF(Summary!E58=Environment!$E$6,1.25,IF(Summary!E58=Environment!$E$5,1.25,0.75))))) -> 0 | DK4: =IF(DI4=0,0,IF(ISBLANK(Summary!F58)=TRUE,0,IF(Summary!F58=Environment!$E$7,0,1)*IF(DJ4=0.75,1.5,IF(DJ4=1.25,1.75,1)))) -> 0 | DL4: =MAX(DI4,DJ4,DK4) -> 0 | DM4: =IF(ISBLANK(Summary!C59)=TRUE,0,IF(Summary!C59=Environment!$B$3,0,0.5)) -> 0 | DO4: =IF(DM4=0,0,IF(ISBLANK(Summary!F59)=TRUE,0,IF(Summary!F59=Environment!$E$7,0,1.5))) -> 0 | DP4: =MAX(DM4,DO4) -> 0 | DQ4: =IF(ISBLANK(Summary!C62)=TRUE,0,IF(Summary!C62=Environment!$B$3,0,0.5)) -> 0 | DR4: =IF(DQ4=0,0,IF(ISBLANK(Summary!D62)=TRUE,0,IF(Summary!E62=Environment!$E$7,0,IF(Summary!E62=Environment!$E$6,1.25,IF(Summary!E62=Environment!$E$5,1.25,0.75))))) -> 0 | DS4: =IF(DQ4=0,0,IF(ISBLANK(Summary!F62)=TRUE,0,IF(Summary!F62=Environment!$E$7,0,1)*IF(DR4=0.75,1.5,IF(DR4=1.25,1.75,1)))) -> 0 | DT4: =MAX(DQ4,DR4,DS4) -> 0 | DU4: =IF(ISBLANK(Summary!C63)=TRUE,0,IF(Summary!C63=Environment!$B$3,0,0.5)) -> 0 | DV4: =IF(DU4=0,0,IF(ISBLANK(Summary!D63)=TRUE,0,IF(Summary!E63=Environment!$E$7,0,IF(Summary!E63=Environment!$E$6,1.25,IF(Summary!E63=Environment!$E$5,1.25,0.75))))) -> 0 | DW4: =IF(DU4=0,0,IF(ISBLANK(Summary!F63)=TRUE,0,IF(Summary!F63=Environment!$E$7,0,1)*IF(DV4=0.75,1.5,IF(DV4=1.25,1.75,1)))) -> 0 | DX4: =MAX(DU4,DV4,DW4) -> 0 | DY4: =IF(ISBLANK(Summary!C64)=TRUE,0,IF(Summary!C64=Environment!$B$3,0,0.5)) -> 0 | EA4: =IF(DY4=0,0,IF(ISBLANK(Summary!D64)=TRUE,0,IF(Summary!F64=Environment!$E$7,0,1.5))) -> 0 | EB4: =MAX(DY4,EA4) -> 0 | EC4: =IF(ISBLANK(Summary!C65)=TRUE,0,IF(Summary!C65=Environment!$B$3,0,0.5)) -> 0 | ED4: =IF(ISBLANK(Summary!D65)=TRUE,0,0.25) -> 0 | EF4: =SUM(EC4:ED4) -> 0 | EG4: =IF(ISBLANK(Summary!C66)=TRUE,0,IF(Summary!C66=Environment!$B$3,0,0.25)) -> 0 | EH4: =IF(ISBLANK(Summary!D66)=TRUE,0,0.25) -> 0 | EI4: =SUM(EG4,EH4) -> 0 | EJ4: =IF(ISBLANK(Summary!C67)=TRUE,0,IF(Summary!C67=Environment!$B$3,0,0.25)) -> 0 | EK4: =IF(ISBLANK(Summary!D67)=TRUE,0,0.25) -> 0 | EL4: =SUM(EJ4,EK4) -> 0 | EM4: =IF(ISBLANK(Summary!C70)=TRUE,0,IF(Summary!C70=Environment!$B$3,0,0.25)) -> 0 | EN4: =IF(COUNTA(Summary!D70:F70)=0,0,0.25) -> 0 | EO4: =SUM(EM4:EN4) -> 0 | EQ4: =IF(ISBLANK(Summary!E72)=TRUE,0,(IF(Summary!E72=Environment!$E$7,0,IF(Summary!E72=Environment!$E$6,1.25,IF(Summary!E72=Environment!$E$5,1.25,0.75))))) -> 0 | ER4: =IF(ISBLANK(Summary!F72)=TRUE,0,(IF(Summary!F72=Environment!$E$7,0,1)*IF(EQ4=0.75,1.5,IF(EQ4=1.25,1.75,1)))) -> 0 | ES4: =MAX(EQ4,ER4) -> 0 | EU4: =IF(ISBLANK(Summary!E73)=TRUE,0,IF(Summary!E73=Environment!$E$7,0,IF(Summary!E73=Environment!$E$6,1.25,IF(Summary!E73=Environment!$E$5,1.25,0.75)))) -> 0 | EV4: =IF(ISBLANK(Summary!F73)=TRUE,0,IF(Summary!F73=Environment!$E$7,0,1)*IF(EU4=0.75,1.5,IF(EU4=1.25,1.75,1))) -> 0 | EW4: =MAX(EU4,EV4) -> 0 | EY4: =IF(ISBLANK(Summary!E74)=TRUE,0,IF(Summary!E74=Environment!$E$7,0,IF(Summary!E74=Environment!$E$6,1.25,IF(Summary!E74=Environment!$E$5,1.25,0.75)))) -> 0 | EZ4: =IF(ISBLANK(Summary!F74)=TRUE,0,IF(Summary!F74=Environment!$E$7,0,1)*IF(EY4=0.75,1.5,IF(EY4=1.25,1.75,1))) -> 0 | FA4: =MAX(EY4,EZ4) -> 0 | FC4: =IF(ISBLANK(Summary!E75)=TRUE,0,IF(Summary!E75=Environment!$E$7,0,IF(Summary!E75=Environment!$E$6,1.25,IF(Summary!E75=Environment!$E$5,1.25,0.75)))) -> 0 | FD4: =IF(ISBLANK(Summary!F75)=TRUE,0,IF(Summary!F75=Environment!$E$7,0,1)*IF(FC4=0.75,1.5,IF(FC4=1.25,1.75,1))) -> 0 | FE4: =MAX(FC4,FD4) -> 0 | FG4: =IF(ISBLANK(Summary!E76)=TRUE,0,IF(Summary!E76=Environment!$E$7,0,IF(Summary!E76=Environment!$E$6,1.25,IF(Summary!E76=Environment!$E$5,1.25,0.75)))) -> 0 | FH4: =IF(ISBLANK(Summary!F76)=TRUE,0,IF(Summary!F76=Environment!$E$7,0,1)*IF(FG4=0.75,1.5,IF(FG4=1.25,1.75,1))) -> 0 | FI4: =MAX(FG4,FH4) -> 0 | FK4: =IF(ISBLANK(Summary!E77)=TRUE,0,IF(Summary!E77=Environment!$E$7,0,IF(Summary!E77=Environment!$E$6,1.25,IF(Summary!E77=Environment!$E$5,1.25,0.75)))) -> 0 | FL4: =IF(ISBLANK(Summary!F77)=TRUE,0,IF(Summary!F77=Environment!$E$7,0,1)*IF(FK4=0.75,1.5,IF(FK4=1.25,1.75,1))) -> 0 | FM4: =MAX(FK4,FL4) -> 0 | FO4: =IF(ISBLANK(Summary!E78)=TRUE,0,IF(Summary!E78=Environment!$E$7,0,IF(Summary!E78=Environment!$E$6,1.25,IF(Summary!E78=Environment!$E$5,1.25,0.75)))) -> 0 | FP4: =IF(ISBLANK(Summary!F78)=TRUE,0,IF(Summary!F78=Environment!$E$7,0,1)*IF(FO4=0.75,1.5,IF(FO4=1.25,1.75,1))) -> 0 | FQ4: =MAX(FO4,FP4) -> 0 | FS4: =IF(ISBLANK(Summary!E79)=TRUE,0,IF(Summary!E79=Environment!$E$7,0,IF(Summary!E79=Environment!$E$6,1.25,IF(Summary!E79=Environment!$E$5,1.25,0.75)))) -> 0 | FT4: =IF(ISBLANK(Summary!F79)=TRUE,0,IF(Summary!F79=Environment!$E$7,0,1)*IF(FS4=0.75,1.5,IF(FS4=1.25,1.75,1))) -> 0 | FU4: =MAX(FS4,FT4) -> 0 | FW4: =IF(ISBLANK(Summary!E80)=TRUE,0,IF(Summary!E80=Environment!$E$7,0,IF(Summary!E80=Environment!$E$6,1.25,IF(Summary!E80=Environment!$E$5,1.25,0.75)))) -> 0 | FX4: =IF(ISBLANK(Summary!F80)=TRUE,0,IF(Summary!F80=Environment!$E$7,0,1)*IF(FW4=0.75,1.5,IF(FW4=1.25,1.75,1))) -> 0 | FY4: =MAX(FW4,FX4) -> 0 | FZ4: =SUM(ES4,EW4,FA4,FE4,FI4,FM4,FQ4,FU4,FY4) -> 0 | GA4: =IF(ISBLANK(Summary!C83)=TRUE,0,IF(Summary!C83=Environment!$B$3,0,0.25)) -> 0 | GB4: =IF(ISBLANK(Summary!D83)=TRUE,0,0.25) -> 0 | GE4: =SUM(GA4:GB4) -> 0 | GF4: =IF(ISBLANK(Summary!C86)=TRUE,0,IF(Summary!C86=Environment!$B$3,0,0.25)) -> 0 | GG4: =IF(ISBLANK(Summary!E86)=TRUE,0,0.25) -> 0 | GJ4: =SUM(GF4:GG4) -> 0 | GK4: =IF(ISBLANK(Summary!C87)=TRUE,0,IF(Summary!C87=Environment!$B$3,0,0.25)) -> 0 | GL4: =IF(ISBLANK(Summary!D87)=TRUE,0,0.25) -> 0 | GO4: =SUM(GK4:GL4) -> 0 | GP4: =IF(ISBLANK(Summary!C88)=TRUE,0,IF(Summary!C88=Environment!$B$3,0,0.25)) -> 0 | GQ4: =IF(ISBLANK(Summary!D88)=TRUE,0,0.25) -> 0 | GT4: =SUM(GP4:GQ4) -> 0 | GU4: =IF(ISBLANK(Summary!C91)=TRUE,0,IF(Summary!C91=Environment!$B$3,0,0.5)) -> 0 | GW4: =IF(GU4=0,0,IF(ISBLANK(Summary!D91)=TRUE,0,IF(Summary!F91=Environment!$E$7,0,IF(Summary!F91=Environment!$E$6,1.25,IF(Summary!F91=Environment!$E$5,1.25,0.75))))) -> 0 | GX4: =IF(GU4=0,0,IF(ISBLANK(Summary!G91)=TRUE,0,IF(Summary!GU91=Environment!$E$7,0,1)*IF(GW4=0.75,1.5,IF(GW4=1.25,1.75,1)))) -> 0 | GY4: =MAX(GU4,GW4,GX4) -> 0 | GZ4: =IF(ISBLANK(Summary!C92)=TRUE,0,IF(Summary!C92=Environment!$B$3,0,0.5)) -> 0 | HB4: =IF(GZ4=0,0,IF(ISBLANK(Summary!D92)=TRUE,0,IF(Summary!F92=Environment!$E$7,0,IF(Summary!F92=Environment!$E$6,1.25,IF(Summary!F92=Environment!$E$5,1.25,0.75))))) -> 0 | HC4: =IF(GZ4=0,0,IF(ISBLANK(Summary!G92)=TRUE,0,IF(Summary!GU92=Environment!$E$7,0,1)*IF(HB4=0.75,1.5,IF(HB4=1.25,1.75,1)))) -> 0 | HD4: =MAX(GZ4,HB4,HC4) -> 0 | HE4: =IF(ISBLANK(Summary!C93)=TRUE,0,IF(Summary!C93=Environment!$B$3,0,0.5)) -> 0 | HG4: =IF(HE4=0,0,IF(ISBLANK(Summary!D93)=TRUE,0,IF(Summary!F93=Environment!$E$7,0,IF(Summary!F93=Environment!$E$6,1.25,IF(Summary!F93=Environment!$E$5,1.25,0.75))))) -> 0 | HH4: =IF(HE4=0,0,IF(ISBLANK(Summary!G93)=TRUE,0,IF(Summary!GU93=Environment!$E$7,0,1)*IF(HG4=0.75,1.5,IF(HG4=1.25,1.75,1)))) -> 0 | HI4: =MAX(HE4,HG4,HH4) -> 0 | HJ4: =IF(ISBLANK(Summary!C94)=TRUE,0,IF(Summary!C94=Environment!$B$3,0,0.25)) -> 0 | HK4: =IF(ISBLANK(Summary!D94)=TRUE,0,0.25) -> 0 | HM4: =SUM(HJ4:HK4) -> 0 | HN4: =IF(ISBLANK(Summary!C97)=TRUE,0,IF(Summary!C97=Environment!$B$3,0,0.5)) -> 0 | HO4: =IF(HN4=0,0,IF(ISBLANK(Summary!D97)=TRUE,0,IF(Summary!F97=Environment!$E$7,0,IF(Summary!F97=Environment!$E$6,1.25,IF(Summary!F97=Environment!$E$5,1.25,0.75))))) -> 0 | HP4: =IF(HN4=0,0,IF(ISBLANK(Summary!G97)=TRUE,0,IF(Summary!G97=Environment!$E$7,0,1)*IF(HO4=0.75,1.5,IF(HO4=1.25,1.75,1)))) -> 0 | HQ4: =MAX(HN4,HO4,HP4) -> 0 | HR4: =IF(ISBLANK(Summary!C98)=TRUE,0,IF(Summary!C98=Environment!$B$3,0,0.5)) -> 0 | HS4: =IF(HR4=0,0,IF(ISBLANK(Summary!D98)=TRUE,0,IF(Summary!F98=Environment!$E$7,0,IF(Summary!F98=Environment!$E$6,1.25,IF(Summary!F98=Environment!$E$5,1.25,0.75))))) -> 0 | HT4: =IF(HR4=0,0,IF(ISBLANK(Summary!G98)=TRUE,0,IF(Summary!G98=Environment!$E$7,0,1)*IF(HS4=0.75,1.5,IF(HS4=1.25,1.75,1)))) -> 0 | HU4: =MAX(HR4,HS4,HT4) -> 0 | HV4: =IF(ISBLANK(Summary!C99)=TRUE,0,IF(Summary!C99=Environment!$B$3,0,0.5)) -> 0 | HW4: =IF(HV4=0,0,IF(ISBLANK(Summary!D99)=TRUE,0,IF(Summary!F99=Environment!$E$7,0,IF(Summary!F99=Environment!$E$6,1.25,IF(Summary!F99=Environment!$E$5,1.25,0.75))))) -> 0 | HX4: =IF(HV4=0,0,IF(ISBLANK(Summary!G99)=TRUE,0,IF(Summary!G99=Environment!$E$7,0,1)*IF(HW4=0.75,1.5,IF(HW4=1.25,1.75,1)))) -> 0 | HY4: =MAX(HV4,HW4,HX4) -> 0 | HZ4: =IF(ISBLANK(Summary!C102)=TRUE,0,IF(Summary!C102=Environment!$B$3,0,0.25)) -> 0 | IA4: =IF(ISBLANK(Summary!D102)=TRUE,0,0.125) -> 0 | IB4: =IF(ISBLANK(Summary!E102)=TRUE,0,0.125) -> 0 | IC4: =IF(HZ4=0,0,IF(ISBLANK(Summary!F102)=TRUE,0,IF(Summary!G102=Environment!$E$7,0,IF(Summary!G102=Environment!$E$6,1.25,IF(Summary!G102=Environment!$E$5,1.25,0.75))))) -> 0 | ID4: =IF(HZ4=0,0,IF(ISBLANK(Summary!H102)=TRUE,0,IF(Summary!H102=Environment!$E$7,0,1)*IF(IC4=0.75,1.5,IF(IC4=1.25,1.75,1)))) -> 0 | IE4: =MAX(SUM(HZ4:IB4),IC4,ID4) -> 0 | IF4: =IF(ISBLANK(Summary!C103)=TRUE,0,IF(Summary!C103=Environment!$B$3,0,0.25)) -> 0 | IG4: =IF(ISBLANK(Summary!D103)=TRUE,0,0.125) -> 0 | IH4: =IF(ISBLANK(Summary!E103)=TRUE,0,0.125) -> 0 | II4: =IF(IF4=0,0,IF(ISBLANK(Summary!F103)=TRUE,0,IF(Summary!G103=Environment!$E$7,0,IF(Summary!G103=Environment!$E$6,1.25,IF(Summary!G103=Environment!$E$5,1.25,0.75))))) -> 0 | IJ4: =IF(IF4=0,0,IF(ISBLANK(Summary!H103)=TRUE,0,IF(Summary!H103=Environment!$E$7,0,1)*IF(II4=0.75,1.5,IF(II4=1.25,1.75,1)))) -> 0 | IK4: =MAX(SUM(IF4:IH4),II4,IJ4) -> 0 | IL4: =IF4 -> 0 | IM4: =IF(ISBLANK(Summary!D104)=TRUE,0,0.125) -> 0 | IN4: =IF(ISBLANK(Summary!E104)=TRUE,0,0.125) -> 0 | IO4: =IF(IL4=0,0,IF(ISBLANK(Summary!F104)=TRUE,0,IF(Summary!G104=Environment!$E$7,0,IF(Summary!G104=Environment!$E$6,1.25,IF(Summary!G104=Environment!$E$5,1.25,0.75))))) -> 0 | IP4: =IF(IL4=0,0,IF(ISBLANK(Summary!H104)=TRUE,0,IF(Summary!H104=Environment!$E$7,0,1)*IF(IO4=0.75,1.5,IF(IO4=1.25,1.75,1)))) -> 0 | IQ4: =MAX(SUM(IM4:IN4),IO4,IP4) -> 0 | IR4: =SUM(IK4,IQ4) -> 0 | IS4: =IF(ISBLANK(Summary!C105)=TRUE,0,IF(Summary!C105=Environment!$B$3,0,0.5)) -> 0 | IT4: =IF(IS4=0,0,IF(ISBLANK(Summary!F105)=TRUE,0,IF(Summary!G105=Environment!$E$7,0,IF(Summary!G105=Environment!$E$6,1.25,IF(Summary!G105=Environment!$E$5,1.25,0.75))))) -> 0 | IU4: =IF(IS4=0,0,IF(ISBLANK(Summary!H105)=TRUE,0,IF(Summary!H105=Environment!$E$7,0,1)*IF(IT4=0.75,1.5,IF(IT4=1.25,1.75,1)))) -> 0 | IV4: =MAX(IS4,IT4,IU4) -> 0 | IW4: =IF(ISBLANK(Summary!C106)=TRUE,0,IF(Summary!C106=Environment!$B$3,0,0.5)) -> 0 | IX4: =IF(IW4=0,0,IF(ISBLANK(Summary!F106)=TRUE,0,IF(Summary!G106=Environment!$E$7,0,IF(Summary!G106=Environment!$E$6,1.25,IF(Summary!G106=Environment!$E$5,1.25,0.75))))) -> 0 | IY4: =IF(IW4=0,0,IF(ISBLANK(Summary!H106)=TRUE,0,IF(Summary!H106=Environment!$E$7,0,1)*IF(IX4=0.75,1.5,IF(IX4=1.25,1.75,1)))) -> 0 | IZ4: =MAX(IW4,IX4,IY4) -> 0 | JA4: =IF(ISBLANK(Summary!C107)=TRUE,0,IF(Summary!C107=Environment!$B$3,0,0.5)) -> 0 | JB4: =IF(JA4=0,0,IF(ISBLANK(Summary!F107)=TRUE,0,IF(Summary!G107=Environment!$E$7,0,IF(Summary!G107=Environment!$E$6,1.25,IF(Summary!G107=Environment!$E$5,1.25,0.75))))) -> 0 | JC4: =IF(JA4=0,0,IF(ISBLANK(Summary!H107)=TRUE,0,IF(Summary!H107=Environment!$E$7,0,1)*IF(JB4=0.75,1.5,IF(JB4=1.25,1.75,1)))) -> 0 | JD4: =MAX(JA4,JB4,JC4) -> 0 | JE4: =IF(ISBLANK(Summary!C108)=TRUE,0,IF(Summary!C108=Environment!$B$3,0,0.5)) -> 0 | JF4: =IF(JE4=0,0,IF(ISBLANK(Summary!F108)=TRUE,0,IF(Summary!G108=Environment!$E$7,0,IF(Summary!G108=Environment!$E$6,1.25,IF(Summary!G108=Environment!$E$5,1.25,0.75))))) -> 0 | JG4: =IF(JE4=0,0,IF(ISBLANK(Summary!H108)=TRUE,0,IF(Summary!H108=Environment!$E$7,0,1)*IF(JF4=0.75,1.5,IF(JF4=1.25,1.75,1)))) -> 0 | JH4: =MAX(JE4,JF4,JG4) -> 0 | JI4: =IF(ISBLANK(Summary!C109)=TRUE,0,IF(Summary!C109=Environment!$B$3,0,0.25)) -> 0 | JJ4: =IF(ISBLANK(Summary!D109)=TRUE,0,0.25) -> 0 | JK4: =SUM(JI4:JJ4) -> 0 | JL4: =IF(ISBLANK(Summary!C110)=TRUE,0,IF(Summary!C110=Environment!$B$3,0,0.25)) -> 0 | JM4: =IF(ISBLANK(Summary!D110)=TRUE,0,0.25) -> 0 | JN4: =SUM(JL4:JM4) -> 0 | JO4: =IF(ISBLANK(Summary!C111)=TRUE,0,IF(Summary!C111=Environment!$B$3,0,0.5)) -> 0 | JP4: =IF(JO4=0,0,IF(ISBLANK(Summary!F111)=TRUE,0,IF(Summary!G111=Environment!$E$7,0,IF(Summary!G111=Environment!$E$6,1.25,IF(Summary!G111=Environment!$E$5,1.25,0.75))))) -> 0 | JQ4: =IF(JO4=0,0,IF(ISBLANK(Summary!H111)=TRUE,0,IF(Summary!H111=Environment!$E$7,0,1)*IF(JP4=0.75,1.5,IF(JP4=1.25,1.75,1)))) -> 0 | JR4: =MAX(JO4,JP4,JQ4) -> 0 | JS4: =JO4 -> 0 | JT4: =IF(JS4=0,0,IF(ISBLANK(Summary!F112)=TRUE,0,IF(Summary!G112=Environment!$E$7,0,IF(Summary!G112=Environment!$E$6,1.25,IF(Summary!G112=Environment!$E$5,1.25,0.75))))) -> 0 | JU4: =IF(JS4=0,0,IF(ISBLANK(Summary!H112)=TRUE,0,IF(Summary!H112=Environment!$E$7,0,1)*IF(JT4=0.75,1.5,IF(JT4=1.25,1.75,1)))) -> 0 | JV4: =MAX(JT4,JU4) -> 0 | JW4: =JR4+JV4 -> 0 | JX4: =IF(ISBLANK(Summary!C113)=TRUE,0,IF(Summary!C113=Environment!$B$3,0,0.5)) -> 0 | JY4: =IF(JX4=0,0,IF(ISBLANK(Summary!F113)=TRUE,0,IF(Summary!G113=Environment!$E$7,0,IF(Summary!G113=Environment!$E$6,1.25,IF(Summary!G113=Environment!$E$5,1.25,0.75))))) -> 0 | JZ4: =IF(JX4=0,0,IF(ISBLANK(Summary!H113)=TRUE,0,IF(Summary!H113=Environment!$E$7,0,1)*IF(JY4=0.75,1.5,IF(JY4=1.25,1.75,1)))) -> 0 | KA4: =MAX(JX4,JY4,JZ4) -> 0 | KB4: =JX4 -> 0 | KC4: =IF(KB4=0,0,IF(ISBLANK(Summary!F114)=TRUE,0,IF(Summary!G114=Environment!$E$7,0,IF(Summary!G114=Environment!$E$6,1.25,IF(Summary!G114=Environment!$E$5,1.25,0.75))))) -> 0 | KD4: =IF(KB4=0,0,IF(ISBLANK(Summary!H114)=TRUE,0,IF(Summary!H114=Environment!$E$7,0,1)*IF(KC4=0.75,1.5,IF(KC4=1.25,1.75,1)))) -> 0 | KE4: =MAX(KC4,KD4) -> 0 | KF4: =KA4+KE4 -> 0 | KG4: =IF(ISBLANK(Summary!C117)=TRUE,0,IF(Summary!C117=Environment!$B$3,0,0.25)) -> 0 | KH4: =IF(ISBLANK(Summary!D117)=TRUE,0,0.25) -> 0 | KI4: =SUM(KG4:KH4) -> 0 | KJ4: =IF(ISBLANK(Summary!C118)=TRUE,0,IF(Summary!C118=Environment!$B$3,0,0.25)) -> 0 | KK4: =IF(ISBLANK(Summary!D118)=TRUE,0,0.25) -> 0 | KL4: =SUM(KJ4:KK4) -> 0 | KM4: =IF(ISBLANK(Summary!C121)=TRUE,0,IF(Summary!C121=Environment!$B$3,0,0.25)) -> 0 | KN4: =IF(ISBLANK(Summary!D121)=TRUE,0,0.25) -> 0 | KO4: =SUM(KM4:KN4) -> 0 | KP4: =IF(ISBLANK(Summary!C122)=TRUE,0,IF(Summary!C122=Environment!$B$3,0,0.25)) -> 0 | KQ4: =IF(ISBLANK(Summary!D122)=TRUE,0,0.25) -> 0 | KR4: =SUM(KP4:KQ4) -> 0 | KS4: =IF(ISBLANK(Summary!C125)=TRUE,0,IF(Summary!C125=Environment!$B$3,0,0.25)) -> 0 | KT4: =IF(ISBLANK(Summary!D125)=TRUE,0,0.25) -> 0 | KU4: =SUM(KS4:KT4) -> 0 | KV4: =IF(ISBLANK(Summary!C126)=TRUE,0,IF(Summary!C126=Environment!$B$3,0,0.5)) -> 0 | KW4: =KV4 -> 0 | KX4: =IF(ISBLANK(Summary!C127)=TRUE,0,IF(Summary!C127=Environment!$B$3,0,0.5)) -> 0 | KY4: =IF(KX4=0,0,IF(ISBLANK(Summary!D127)=TRUE,0,IF(Summary!E127=Environment!$E$7,0,IF(Summary!E127=Environment!$E$6,1.25,IF(Summary!E127=Environment!$E$5,1.25,0.75))))) -> 0 | KZ4: =IF(KX4=0,0,IF(ISBLANK(Summary!F127)=TRUE,0,IF(Summary!F127=Environment!$E$7,0,1)*IF(KY4=0.75,1.5,IF(KY4=1.25,1.75,1)))) -> 0 | LA4: =MAX(KX4,KY4,KZ4) -> 0 | LB4: =IF(ISBLANK(Summary!C128)=TRUE,0,IF(Summary!C128=Environment!$B$3,0,0.25)) -> 0 | LC4: =IF(ISBLANK(Summary!D128)=TRUE,0,0.25) -> 0 | LD4: =SUM(LB4:LC4) -> 0

Sheet Averages (hidden)
B1: Sector | C1: Disclosure and labelling | D1: Board structure and independence | E1: Policies, standards, codes of conduct | F1: Communication and engagement | G1: Marketing and ethical advertising | H1: Child and forced labour | I1: Employee health, safety and wellness / Training and Development | J1: Customer satisfaction | K1: Regulatory and legal challenges | L1: Labour relations and union practices | M1: Supply chain standards and selection | N1: Product life cycle impact | O1: Biodiversity impacts | P1: Climate Change Risk | Q1: Energy management | R1: GHG emissions and air pollution | S1: Waste management and effluents | T1: Water Management | U1: Environmental expenditure | V1: Political and lobbying | W1: Community Developemnt | X1: Maximum possible score
B2: Automotive and Auto Ancillary | C2: 0.5833333333 | D2: 1.1 | E2: 1.520833333 | F2: 1.234848485 | H2: 0.7613636364 | I2: 1.152777778 | J2: 0.8522727273 | K2: 0.8472222222 | L2: 0.9583333333 | M2: 1.637626263 | N2: 0.7453703704 | O2: 0 | P2: 0.6875 | Q2: 1.308333333 | R2: 1.025793651 | S2: 2.202898551 | T2: 0.6856060606 | U2: 0 | V2: 0.9166666667 | W2: 0.9166666667 | X2: 73.25
B3: Banking and Financial Services | C3: 0.5 | D3: 0.8722222222 | E3: 0.5694444444 | F3: 0.3535353535 | G3: 0.2407407407 | H3: 0.3095238095 | I3: 0.2658730159 | J3: 0.4646464646 | K3: 0.1814814815 | L3: 0.2063492063 | M3: 0.3308080808 | O3: 0 | P3: 0.4583333333 | Q3: 0.1755555556 | S3: 0.1616161616 | U3: 0 | V3: 0.2361111111 | W3: 0.7314814815 | X3: 44.75
B4: Broadcasting | C4: 0.5 | D4: 0.7 | E4: 0.5833333333 | F4: 0.4090909091 | G4: 0 | H4: 0.2857142857 | I4: 0.2142857143 | J4: 0.3636363636 | K4: 0.1333333333 | L4: 0.2857142857 | M4: 0.05555555556 | O4: 0 | P4: 0 | Q4: 0 | S4: 0.09090909091 | U4: 0 | V4: 0.5 | W4: 0.6666666667 | X4: 46.75
B5: Chemicals | C5: 0.5 | D5: 0.6 | E5: 0.625 | F5: 0.3409090909 | G5: 0.5454545455 | H5: 0.3636363636 | I5: 0.5 | J5: 0.4545454545 | K5: 0.3 | L5: 0.125 | M5: 0.2575757576 | N5: 0.3888888889 | O5: 0 | P5: 0.4375 | Q5: 0.48 | S5: 0.3695652174 | T5: 0.5454545455 | U5: 0.3 | V5: 0.25 | W5: 0.625 | X5: 71.25
B6: Construction | C6: 0.5 | D6: 0.68 | E6: 0.6083333333 | F6: 0.3545454545 | G6: 0.6 | H6: 0.2909090909 | I6: 0.2857142857 | J6: 0.3714285714 | K6: 0.2666666667 | L6: 0.3625 | M6: 0.2848484848 | N6: 0.2888888889 | O6: 0.35 | P6: 0.55 | Q6: 0.272 | S6: 0.2380952381 | T6: 0.2545454545 | U6: 0.1 | V6: 0.35 | W6: 0.675 | X6: 70.5
B7: Cosmetics / Personal Care | C7: 0.4 | D7: 0.72 | E7: 0.5666666667 | F7: 0.3727272727 | G7: 0.4363636364 | H7: 0.3636363636 | I7: 0.2761904762 | J7: 0.4220779221 | K7: 0.2666666667 | L7: 0.2875 | M7: 0.2727272727 | N7: 0.5111111111 | O7: 0 | P7: 0.4 | Q7: 0.416 | S7: 0.252173913 | T7: 0.2363636364 | U7: 0.1 | V7: 0.25 | W7: 0.65 | X7: 71.25
B8: Extracting / Production | C8: 0.75 | D8: 0.7 | E8: 0.4166666667 | F8: 0.3863636364 | H8: 0.1818181818 | I8: 0.5952380952 | K8: 0.3333333333 | L8: 0.25 | M8: 0.1724137931 | N8: 0.5 | O8: 0.375 | P8: 0.3333333333 | Q8: 0.44 | R8: 0.6428571429 | S8: 0.3804347826 | T8: 0.9090909091 | U8: 0.4 | V8: 0.5 | W8: 0.625 | X8: 74.5
B9: IT/ITES & Electronics | C9: 0.5 | D9: 0.7333333333 | E9: 0.6527777778 | F9: 0.4848484848 | H9: 0.2857142857 | I9: 0.4523809524 | K9: 0.2222222222 | L9: 0.2380952381 | M9: 0.2777777778 | O9: 0 | P9: 0.4583333333 | Q9: 0.6133333333 | S9: 0.4242424242 | T9: 0.5454545455 | U9: 0.2 | V9: 0.3333333333 | W9: 0.8333333333 | X9: 45.75
B10: Materials | C10: 0.625 | D10: 0.65 | E10: 0.5833333333 | F10: 0.375 | G10: 1 | H10: 0.2727272727 | I10: 0.4285714286 | J10: 0.4545454545 | K10: 0.3 | L10: 0.40625 | M10: 0.3106060606 | N10: 0.4444444444 | O10: 0 | Q10: 0.37 | R10: 0.25 | S10: 0.2928571429 | T10: 0.4772727273 | U10: 0.1 | V10: 0.4375 | W10: 0.625 | X10: 67.75
B11: Mining & Metals | C11: 0.5 | D11: 0.92 | E11: 1.458333333 | F11: 0.4454545455 | H11: 0.3636363636 | I11: 0.4952380952 | J11: 0.6857142857 | K11: 0.24 | L11: 0.375 | M11: 0.3034482759 | N11: 0.5333333333 | O11: 0.5 | P11: 0.55 | Q11: 0.384 | R11: 0.2666666667 | S11: 0.3043478261 | T11: 0.4363636364 | U11: 0.2 | V11: 0.4 | W11: 0.65 | X11: 74.25
B12: Others | C12: 0.5 | D12: 0.76 | E12: 0.4583333333 | F12: 0.4636363636 | H12: 0.3636363636 | I12: 0.1619047619 | J12: 0.5480519481 | K12: 0.3171428571 | L12: 0.35 | M12: 0.2415882968 | N12: 0.4222222222 | O12: 0 | Q12: 0.248 | U12: 0 | V12: 0.3 | W12: 0.7 | X12: 50
B13: Personal Accessories | C13: 0.5 | D13: 0.6 | E13: 0.5833333333 | F13: 0.5 | G13: 1 | H13: 0.2727272727 | I13: 0.380952381 | J13: 0.4545454545 | K13: 0.2666666667 | L13: 0.4375 | M13: 0.4137931034 | N13: 0.4444444444 | O13: 0 | P13: 0.5 | Q13: 0.6 | R13: 0.1904761905 | S13: 0.2571428571 | T13: 0.2727272727 | U13: 0 | V13: 0.25 | W13: 1 | X13: 69.5
B14: Pharmaceuticals | C14: 0.5 | D14: 0.7875 | E14: 0.625 | F14: 0.3295454545 | G14: 0.4772727273 | H14: 0.2386363636 | I14: 0.1904761905 | J14: 0.3636363636 | K14: 0.2333333333 | L14: 0.21875 | M14: 0.2613636364 | N14: 0.3472222222 | O14: 0 | P14: 0.5 | Q14: 0.3 | S14: 0.1657608696 | T14: 0.1363636364 | U14: 0 | V14: 0.34375 | W14: 0.75 | X14: 72.25
B15: Power (Generation/Distribution) | C15: 0.5 | D15: 0.8333333333 | E15: 0.5972222222 | F15: 0.4545454545 | H15: 0.3636363636 | I15: 0.4920634921 | J15: 0.619047619 | K15: 0.2666666667 | L15: 0.3541666667 | M15: 0.3218390805 | N15: 0.4074074074 | O15: 0.3333333333 | P15: 0.5555555556 | Q15: 0.48 | R15: 0.4444444444 | S15: 0.4855072464 | T15: 0.4545454545 | U15: 0.4 | V15: 0.4166666667 | W15: 0.6666666667 | X15: 76.25
B16: Processed food and beverages | C16: 0.6666666667 | D16: 0.7666666667 | E16: 0.6944444444 | F16: 0.3939393939 | G16: 0.5454545455 | H16: 0.3636363636 | I16: 0.3174603175 | J16: 0.4242424242 | K16: 0.1333333333 | L16: 0.3541666667 | M16: 0.3636363636 | N16: 0.2592592593 | O16: 0 | P16: 0.4583333333 | Q16: 0.28 | S16: 0.2536231884 | T16: 0.3636363636 | U16: 0 | V16: 0.3333333333 | W16: 0.6666666667 | X16: 71.25
B17: Refining and Marketing | C17: 0.5 | D17: 0.92 | E17: 0.625 | F17: 0.4909090909 | H17: 0.3636363636 | I17: 0.5714285714 | J17: 0.4727272727 | K17: 0.4 | L17: 0.3625 | M17: 0.2482758621 | N17: 0.5777777778 | O17: 0.55 | P17: 0.4833333333 | Q17: 0.504 | R17: 0.380952381 | S17: 0.4173913043 | T17: 0.5636363636 | U17: 0.3 | V17: 0.5 | W17: 0.65 | X17: 76.75
B18: Telecom | C18: 0.5 | D18: 0.8 | E18: 0.5833333333 | F18: 0.4545454545 | H18: 0.5714285714 | I18: 0.4285714286 | J18: 0.4545454545 | K18: 0.2 | L18: 0.2857142857 | M18: 0.1111111111 | N18: 0.2777777778 | O18: 0 | P18: 0.5 | Q18: 0.22 | R18: 0 | S18: 0.07608695652 | U18: 0 | V18: 0.375 | W18: 0.4166666667 | X18: 59.25

Sheet graphs (hidden)
C3: =Summary!C1 -> 0 | D3: 2014 Sector average
B4: Disclosure and labelling | C4: =Summary!M8 -> 0 | D4: =Summary!N8 -> 0.5
B5: Board structure and independence | C5: =Summary!M11 -> 0 | D5: =Summary!N11 -> 0.6
B6: Policies, standards, codes of conduct | C6: =Summary!M17 -> 0 | D6: =Summary!N17 -> 0.625
B7: Communication and engagement | C7: =Summary!M26 -> 0 | D7: =Summary!N26 -> 0.3409090909
B8: Marketing and ethical advertising | C8: =Summary!M33 -> 0 | D8: =Summary!N33 -> 0.5454545455
B9: Child and forced labour | C9: =Summary!M38 -> 0 | D9: =Summary!N38 -> 0.3636363636
B10: Employee health, safety and wellness / Training and Development | C10: =Summary!M42 -> 0 | D10: =Summary!N42 -> 0.5
B11: Customer satisfaction | C11: =Summary!M47 -> 0 | D11: =Summary!N47 -> 0.4545454545
B12: Regulatory and legal challenges | C12: =Summary!M50 -> 0 | D12: =Summary!N50 -> 0.3
B13: Labour relations and union practices | C13: =Summary!M56 -> 0 | D13: =Summary!N56 -> 0.125
B14: Supply chain standards and selection | C14: =Summary!M61 -> 0 | D14: =Summary!N61 -> 0.2575757576
B15: Product life cycle impact | C15: =Summary!M69 -> 0 | D15: =Summary!N69 -> 0.3888888889
B16: Biodiversity impacts | C16: =Summary!M82 -> 0 | D16: =Summary!N82 -> 0
B17: Climate Change Risk | C17: =Summary!M85 -> 0 | D17: =Summary!N85 -> 0.4375
B18: Energy management | C18: =Summary!M90 -> 0 | D18: =Summary!N90 -> 0.48
B19: GHG emissions and air pollution | C19: =Summary!M96 -> 0 | D19: =Summary!N96 -> 
B20: Waste management and effluents | C20: =Summary!M101 -> 0 | D20: =Summary!N101 -> 0.3695652174
B21: Water Management | C21: =Summary!M110 -> 0 | D21: =Summary!N110 -> 0.5454545455
B22: Environmental protection expenditure | C22: =Summary!M114 -> 0 | D22: =Summary!N114 -> 0.3
B23: Political and lobbying | C23: =Summary!M120 -> 0 | D23: =Summary!N120 -> 0.25
B24: Community Developemnt | C24: =Summary!M124 -> 0 | D24: =Summary!N124 -> 0.625

Sheet Maximum scores (hidden)
B2: Sector | C2: Disclosure and labelling | D2: Board structure and independence | E2: Policies, standards, codes of conduct | F2: Communication and engagement | G2: Marketing and ethical advertising | H2: Child and forced labour | I2: Employee health, safety and wellness / Training and Development | J2: Customer satisfaction | K2: Regulatory and legal challenges | L2: Labour relations and union practices | M2: Supply chain standards and selection | N2: Product life cycle impact | O2: Biodiversity impacts | P2: Climate Change Risk | Q2: Energy management | R2: GHG emissions and air pollution | S2: Waste management and effluents | T2: Water Management | U2: Environmental expenditure | V2: Political and lobbying | W2: Community Developemnt | X2: Maximum possible score
C3: 1 | D3: 2.5 | E3: 6 | F3: 5.5 | G3: 4.5 | H3: 2.75 | I3: 5.25 | J3: 1 | K3: 4.25 | L3: 4 | M3: 8.25 | N3: 2.25 | O3: 1 | P3: 3 | Q3: 6.25 | R3: 5.25 | S3: 11.5 | T3: 2.75 | U3: 1.75 | V3: 2 | W3: 6.25 | X3: =SUM(C3:W3) -> 87
